[Event "Open NK Rapid 2025"]
[Site "Helmond, Netherlands"]
[Date "2025.05.03"]
[Round "8.8"]
[White "Landman, Renzo"]
[Black "Stolwijk, Colin"]
[Result "0-1"]
[TimeControl "15+5"]
[WhiteFideId "40106306"]
[BlackFideId "1033743"]
[WhiteElo "1975"]
[BlackElo "2286"]

1. e4 {[%clk 00:15:04]} {[%emt 00:00:05]} c6 {[%clk 00:15:09]} {[%emt
00:00:02]} 2. d4 {[%clk 00:14:49]} {[%emt 00:00:20]} d5 {[%clk 00:15:13]}
{[%emt 00:00:02]} 3. Nc3 {[%clk 00:14:47]} {[%emt 00:00:07]} dxe4 {[%clk
00:15:10]} {[%emt 00:00:08]} 4. Nxe4 {[%clk 00:14:48]} {[%emt 00:00:03]} Nf6
{[%clk 00:14:59]} {[%emt 00:00:16]} 5. Nxf6+ {[%clk 00:14:50]} {[%emt
00:00:04]} exf6 {[%clk 00:15:02]} {[%emt 00:00:02]} 6. c3 {[%clk 00:14:41]}
{[%emt 00:00:14]} Bd6 {[%clk 00:15:04]} {[%emt 00:00:03]} 7. Bd3 {[%clk
00:14:42]} {[%emt 00:00:03]} O-O {[%clk 00:15:05]} {[%emt 00:00:05]} 8. Qc2
{[%clk 00:14:45]} {[%emt 00:00:01]} Re8+ {[%clk 00:15:08]} {[%emt 00:00:02]} 9.
Ne2 {[%clk 00:14:48]} {[%emt 00:00:02]} h5 {[%clk 00:15:11]} {[%emt 00:00:02]}
10. O-O {[%clk 00:12:51]} {[%emt 00:02:03]} h4 {[%clk 00:15:15]} {[%emt
00:00:01]} 11. h3 {[%clk 00:12:20]} {[%emt 00:00:36]} Nd7 {[%clk 00:15:16]}
{[%emt 00:00:03]} 12. Be3 {[%clk 00:11:36]} {[%emt 00:00:49]} Nf8 {[%clk
00:14:54]} {[%emt 00:00:28]} 13. Rae1 {[%clk 00:11:18]} {[%emt 00:00:22]} Bc7
{[%clk 00:14:39]} {[%emt 00:00:21]} 14. Qd2 {[%clk 00:07:23]} {[%emt 00:03:59]}
Ng6 {[%clk 00:14:21]} {[%emt 00:00:23]} 15. Bxg6 {[%clk 00:06:28]} {[%emt
00:01:00]} fxg6 {[%clk 00:14:25]} {[%emt 00:00:02]} 16. Bf4 {[%clk 00:06:24]}
{[%emt 00:00:09]} Be6 {[%clk 00:11:26]} {[%emt 00:03:04]} 17. Bxc7 {[%clk
00:06:09]} {[%emt 00:00:19]} Qxc7 {[%clk 00:11:29]} {[%emt 00:00:02]} 18. Nf4
{[%clk 00:05:28]} {[%emt 00:00:46]} Bc4 {[%clk 00:11:25]} {[%emt 00:00:10]} 19.
Rxe8+ {[%clk 00:04:45]} {[%emt 00:00:48]} Rxe8 {[%clk 00:11:27]} {[%emt
00:00:02]} 20. Nd3 {[%clk 00:04:07]} {[%emt 00:00:43]} Bxa2 {[%clk 00:11:13]}
{[%emt 00:00:20]} 21. Ra1 {[%clk 00:04:02]} {[%emt 00:00:09]} Bc4 {[%clk
00:11:14]} {[%emt 00:00:04]} 22. Re1 {[%clk 00:02:46]} {[%emt 00:01:22]} Rxe1+
{[%clk 00:10:46]} {[%emt 00:00:32]} 23. Nxe1 {[%clk 00:02:49]} {[%emt
00:00:02]} Qe7 {[%clk 00:10:42]} {[%emt 00:00:09]} 24. Nf3 {[%clk 00:02:45]}
{[%emt 00:00:09]} g5 {[%clk 00:10:16]} {[%emt 00:00:31]} 25. Qc2 {[%clk
00:02:23]} {[%emt 00:00:26]} Bd5 {[%clk 00:09:39]} {[%emt 00:00:43]} 26. Qf5
{[%clk 00:01:46]} {[%emt 00:00:42]} Qe6 {[%clk 00:08:22]} {[%emt 00:01:22]} 27.
Qg6 {[%clk 00:01:42]} {[%emt 00:00:09]} a5 {[%clk 00:07:46]} {[%emt 00:00:42]}
28. Kh2 {[%clk 00:00:52]} {[%emt 00:00:54]} b5 {[%clk 00:07:14]} {[%emt
00:00:37]} 29. Kg1 {[%clk 00:00:51]} {[%emt 00:00:06]} b4 {[%clk 00:07:05]}
{[%emt 00:00:15]} 30. cxb4 {[%clk 00:00:49]} {[%emt 00:00:06]} axb4 {[%clk
00:07:09]} 31. Kh2 {[%clk 00:00:26]} {[%emt 00:00:28]} b3 {[%clk 00:07:13]}
{[%emt 00:00:02]} 32. Qd3 {[%clk 00:00:20]} {[%emt 00:00:10]} g4 {[%clk
00:06:42]} {[%emt 00:00:37]} 33. Nxh4 {[%clk 00:00:09]} {[%emt 00:00:15]} gxh3
{[%clk 00:06:44]} {[%emt 00:00:03]} 34. Qxh3 {[%clk 00:00:07]} {[%emt
00:00:06]} Kf7 {[%clk 00:05:16]} {[%emt 00:01:34]} 35. Qxe6+ {[%clk 00:00:09]}
{[%emt 00:00:04]} Kxe6 {[%clk 00:05:17]} {[%emt 00:00:04]} 36. Kg3 {[%clk
00:00:09]} {[%emt 00:00:04]} Be4 {[%clk 00:05:06]} {[%emt 00:00:17]} 37. f3
{[%clk 00:00:07]} {[%emt 00:00:08]} Bc2 {[%clk 00:04:57]} {[%emt 00:00:13]} 38.
f4 {[%clk 00:00:06]} {[%emt 00:00:06]} Kd5 {[%clk 00:04:53]} {[%emt 00:00:08]}
39. Nf3 {[%clk 00:00:10]} {[%emt 00:00:02]} Bd1 {[%clk 00:04:48]} {[%emt
00:00:09]} 40. Nh4 {[%clk 00:00:11]} {[%emt 00:00:04]} Kxd4 {[%clk 00:04:00]}
{[%emt 00:00:53]} 41. Nf5+ {[%clk 00:00:11]} {[%emt 00:00:05]} Kd3 {[%clk
00:04:04]} {[%emt 00:00:02]} 42. Nxg7 {[%clk 00:00:07]} {[%emt 00:00:08]} Kc2
{[%clk 00:04:03]} {[%emt 00:00:06]} 43. Nf5 {[%clk 00:00:08]} {[%emt 00:00:04]}
Kxb2 {[%clk 00:03:57]} {[%emt 00:00:11]} 44. Ne3 {[%clk 00:00:12]} {[%emt
00:00:02]} Be2 {[%clk 00:03:19]} {[%emt 00:00:43]} 45. Kf2 {[%clk 00:00:15]}
{[%emt 00:00:01]} Kc1 {[%clk 00:03:23]} {[%emt 00:00:02]} 46. Kxe2 {[%clk
00:00:06]} {[%emt 00:00:14]} b2 {[%clk 00:03:27]} 0-1

[Event "Open NK Rapid 2025"]
[Site "Helmond, Netherlands"]
[Date "2025.05.03"]
[Round "8.9"]
[White "Smeets, Kobe"]
[Black "Vasylchenko, Maksym"]
[Result "1-0"]
[TimeControl "15+5"]
[WhiteFideId "1063910"]
[BlackFideId "34150617"]
[WhiteElo "2192"]
[BlackElo "1853"]

1. e4 {[%clk 00:15:08]} {[%emt 00:00:02]} c5 {[%clk 00:15:08]} {[%emt
00:00:02]} 2. Nf3 {[%clk 00:15:12]} {[%emt 00:00:01]} d6 {[%clk 00:15:10]}
{[%emt 00:00:03]} 3. d4 {[%clk 00:15:14]} {[%emt 00:00:04]} cxd4 {[%clk
00:15:11]} {[%emt 00:00:04]} 4. Nxd4 {[%clk 00:15:17]} {[%emt 00:00:02]} Nf6
{[%clk 00:15:13]} {[%emt 00:00:02]} 5. Nc3 {[%clk 00:15:20]} {[%emt 00:00:02]}
g6 {[%clk 00:15:13]} {[%emt 00:00:06]} 6. Be3 {[%clk 00:15:21]} {[%emt
00:00:04]} Bg7 {[%clk 00:15:16]} {[%emt 00:00:01]} 7. f3 {[%clk 00:15:25]}
{[%emt 00:00:02]} O-O {[%clk 00:15:18]} {[%emt 00:00:02]} 8. Qd2 {[%clk
00:15:28]} {[%emt 00:00:02]} Nc6 {[%clk 00:15:21]} {[%emt 00:00:02]} 9. g4
{[%clk 00:15:30]} {[%emt 00:00:02]} Nxd4 {[%clk 00:13:51]} {[%emt 00:01:36]} 10.
Bxd4 {[%clk 00:15:30]} {[%emt 00:00:05]} Bxg4 {[%clk 00:13:54]} {[%emt
00:00:02]} 11. fxg4 {[%clk 00:15:22]} {[%emt 00:00:13]} Nxg4 {[%clk 00:13:57]}
{[%emt 00:00:02]} 12. Bxg7 {[%clk 00:14:56]} {[%emt 00:00:30]} Kxg7 {[%clk
00:13:52]} {[%emt 00:00:11]} 13. O-O-O {[%clk 00:14:51]} {[%emt 00:00:10]} Rc8
{[%emt 00:00:17]} 14. h4 {[%clk 00:14:43]} h5 {[%clk 00:13:53]} {[%emt
00:00:05]} 15. Be2 {[%clk 00:14:44]} {[%emt 00:00:05]} Qa5 {[%clk 00:13:46]}
{[%emt 00:00:12]} 16. Bxg4 {[%clk 00:14:20]} {[%emt 00:00:28]} hxg4 {[%clk
00:13:44]} {[%emt 00:00:08]} 17. Rhg1 {[%clk 00:14:15]} {[%emt 00:00:09]} e5
{[%clk 00:12:56]} {[%emt 00:00:53]} 18. Rxg4 {[%clk 00:14:07]} {[%emt
00:00:13]} Rxc3 {[%clk 00:13:00]} {[%emt 00:00:02]} 19. Qxc3 {[%clk 00:14:09]}
{[%emt 00:00:03]} Qxa2 {[%clk 00:13:03]} {[%emt 00:00:02]} 20. Qa3 {[%clk
00:12:59]} {[%emt 00:01:15]} Qc4 {[%clk 00:12:57]} {[%emt 00:00:11]} 21. Qxd6
{[%clk 00:12:53]} {[%emt 00:00:10]} Rc8 {[%clk 00:12:57]} {[%emt 00:00:05]} 22.
Qxe5+ {[%clk 00:12:52]} {[%emt 00:00:06]} Kh7 {[%clk 00:13:00]} {[%emt
00:00:02]} 23. Rg2 {[%clk 00:11:20]} {[%emt 00:01:37]} Qa4 {[%clk 00:12:52]}
{[%emt 00:00:11]} 24. Rd5 {[%clk 00:10:49]} {[%emt 00:00:37]} Qa6 {[%clk
00:12:08]} {[%emt 00:00:50]} 25. Kd2 {[%clk 00:10:36]} {[%emt 00:00:19]} Qf1
{[%clk 00:11:57]} {[%emt 00:00:15]} 26. Qh5+ {[%clk 00:10:27]} {[%emt
00:00:13]} Kg7 {[%clk 00:11:56]} {[%emt 00:00:06]} 27. Rxg6+ {[%clk 00:10:06]}
{[%emt 00:00:27]} fxg6 {[%clk 00:11:52]} {[%emt 00:00:09]} 28. Rd7+ {[%clk
00:10:09]} {[%emt 00:00:01]} Kf6 {[%clk 00:11:25]} {[%emt 00:00:33]} 29. Qg5+
{[%clk 00:10:13]} {[%emt 00:00:01]} Ke6 {[%clk 00:11:28]} {[%emt 00:00:03]} 30.
Qe7# {[%clk 00:10:16]} {[%emt 00:00:01]} 1-0

[Event "Open NK Rapid 2025"]
[Site "Helmond, Netherlands"]
[Date "2025.05.03"]
[Round "8.10"]
[White "Schneider, Ilja"]
[Black "Grooten, Tommy"]
[Result "1/2-1/2"]
[TimeControl "15+5"]
[WhiteFideId "4663306"]
[BlackFideId "1068806"]
[WhiteElo "2438"]
[BlackElo "2027"]

1. e4 {[%clk 00:15:08]} {[%emt 00:00:01]} c5 {[%clk 00:15:10]} {[%emt
00:00:01]} 2. Nc3 {[%clk 00:15:13]} d6 {[%clk 00:15:12]} {[%emt 00:00:03]} 3.
d4 {[%clk 00:15:17]} {[%emt 00:00:01]} cxd4 {[%clk 00:15:15]} {[%emt 00:00:01]}
4. Qxd4 {[%clk 00:15:21]} {[%emt 00:00:01]} Nc6 {[%clk 00:15:20]} 5. Qd2 {[%clk
00:15:25]} g6 {[%clk 00:15:24]} {[%emt 00:00:02]} 6. b3 {[%clk 00:15:30]} Bg7
{[%clk 00:15:24]} {[%emt 00:00:05]} 7. Bb2 {[%clk 00:15:34]} Nf6 {[%clk
00:15:27]} {[%emt 00:00:02]} 8. O-O-O {[%clk 00:15:37]} {[%emt 00:00:02]} O-O
{[%clk 00:15:30]} {[%emt 00:00:02]} 9. f3 {[%clk 00:15:39]} {[%emt 00:00:03]}
h5 {[%clk 00:15:15]} {[%emt 00:00:20]} 10. Kb1 {[%clk 00:15:41]} {[%emt
00:00:03]} Bd7 {[%clk 00:13:33]} {[%emt 00:01:47]} 11. Nge2 {[%clk 00:15:27]}
{[%emt 00:00:18]} a6 {[%clk 00:13:16]} {[%emt 00:00:23]} 12. h3 {[%clk
00:14:59]} {[%emt 00:00:32]} h4 {[%clk 00:13:18]} {[%emt 00:00:04]} 13. Nd5
{[%clk 00:14:39]} {[%emt 00:00:25]} Nh5 {[%clk 00:12:15]} {[%emt 00:01:08]} 14.
Bxg7 {[%clk 00:14:04]} {[%emt 00:00:40]} Kxg7 {[%clk 00:12:17]} {[%emt
00:00:03]} 15. Qg5 {[%clk 00:14:04]} {[%emt 00:00:04]} e6 {[%clk 00:12:12]}
{[%emt 00:00:11]} 16. Qxd8 {[%clk 00:14:06]} {[%emt 00:00:02]} Rfxd8 {[%clk
00:12:14]} {[%emt 00:00:04]} 17. Nb6 {[%clk 00:14:10]} {[%emt 00:00:01]} Rab8
{[%clk 00:12:08]} {[%emt 00:00:11]} 18. Rxd6 {[%clk 00:14:08]} {[%emt
00:00:06]} Be8 {[%clk 00:12:11]} {[%emt 00:00:02]} 19. Rxd8 {[%clk 00:13:35]}
{[%emt 00:00:39]} Rxd8 {[%clk 00:12:14]} {[%emt 00:00:02]} 20. Kc1 {[%clk
00:12:59]} {[%emt 00:00:41]} g5 {[%clk 00:10:34]} {[%emt 00:01:45]} 21. Rg1
{[%clk 00:11:31]} {[%emt 00:01:33]} Ne5 {[%clk 00:10:13]} {[%emt 00:00:26]} 22.
Nc3 {[%clk 00:11:17]} {[%emt 00:00:18]} Rd6 {[%clk 00:09:38]} {[%emt 00:00:41]}
23. Nc4 {[%clk 00:11:20]} {[%emt 00:00:02]} Nxc4 {[%clk 00:09:42]} {[%emt
00:00:01]} 24. Bxc4 {[%clk 00:11:24]} {[%emt 00:00:01]} b5 {[%clk 00:09:45]}
{[%emt 00:00:01]} 25. Bd3 {[%clk 00:11:14]} {[%emt 00:00:14]} Nf4 {[%clk
00:09:29]} {[%emt 00:00:22]} 26. Kd2 {[%clk 00:11:09]} {[%emt 00:00:10]} Kf6
{[%clk 00:09:27]} {[%emt 00:00:08]} 27. e5+ {[%clk 00:08:08]} {[%emt 00:03:06]}
Kxe5 {[%clk 00:09:19]} {[%emt 00:00:12]} 28. Re1+ {[%clk 00:08:10]} {[%emt
00:00:03]} Kd4 {[%clk 00:07:54]} {[%emt 00:01:31]} 29. Re4+ {[%clk 00:05:54]}
{[%emt 00:02:21]} Kc5 {[%clk 00:07:58]} {[%emt 00:00:02]} 30. Re5+ {[%clk
00:05:58]} Kb4 {[%clk 00:06:40]} {[%emt 00:01:23]} 31. Rxg5 {[%clk 00:05:36]}
{[%emt 00:00:27]} Ka3 {[%clk 00:06:44]} 32. Ne4 {[%clk 00:04:36]} {[%emt
00:01:05]} Rd8 {[%clk 00:05:53]} {[%emt 00:00:56]} 33. Rg8 {[%clk 00:04:29]}
{[%emt 00:00:12]} Ra8 {[%clk 00:05:55]} {[%emt 00:00:03]} 34. Bf1 {[%clk
00:02:33]} {[%emt 00:02:01]} f5 {[%clk 00:04:09]} {[%emt 00:01:51]} 35. Nc5
{[%clk 00:02:01]} {[%emt 00:00:37]} Kxa2 {[%clk 00:03:44]} {[%emt 00:00:30]} 36.
Nxa6 {[%clk 00:01:42]} {[%emt 00:00:24]} Rxa6 {[%clk 00:03:02]} {[%emt
00:00:47]} 37. Rxe8 {[%clk 00:01:46]} Kb2 {[%clk 00:02:39]} {[%emt 00:00:29]}
38. Ke3 {[%clk 00:01:09]} {[%emt 00:00:42]} Nd5+ {[%clk 00:02:23]} {[%emt
00:00:22]} 39. Kd4 {[%clk 00:01:00]} {[%emt 00:00:13]} Kxc2 {[%clk 00:01:23]}
{[%emt 00:01:05]} 40. Bxb5 {[%clk 00:01:04]} {[%emt 00:00:01]} Ra1 {[%clk
00:01:23]} {[%emt 00:00:05]} 41. Rxe6 {[%clk 00:01:04]} {[%emt 00:00:06]} Nf4
{[%clk 00:01:16]} {[%emt 00:00:12]} 42. Rc6+ {[%clk 00:01:08]} Kd2 {[%clk
00:01:20]} {[%emt 00:00:01]} 43. Ke5 {[%clk 00:00:53]} {[%emt 00:00:19]} Nxg2
{[%clk 00:01:24]} {[%emt 00:00:01]} 44. Kxf5 {[%clk 00:00:50]} {[%emt
00:00:07]} Ke3 {[%clk 00:01:08]} {[%emt 00:00:21]} 45. Kg4 {[%clk 00:00:35]}
{[%emt 00:00:21]} Ra7 {[%clk 00:00:23]} {[%emt 00:00:50]} 46. Re6+ {[%clk
00:00:33]} {[%emt 00:00:07]} Kf2 {[%clk 00:00:11]} {[%emt 00:00:17]} 47. Be8
{[%clk 00:00:17]} {[%emt 00:00:21]} Rg7+ {[%clk 00:00:11]} {[%emt 00:00:05]} 48.
Bg6 {[%clk 00:00:19]} {[%emt 00:00:03]} Rb7 {[%clk 00:00:13]} {[%emt 00:00:03]}
49. f4 {[%clk 00:00:18]} {[%emt 00:00:05]} Rxb3 {[%clk 00:00:16]} {[%emt
00:00:03]} 50. f5 {[%clk 00:00:12]} {[%emt 00:00:11]} Rg3+ {[%clk 00:00:21]} 51.
Kh5 {[%clk 00:00:17]} Nf4+ {[%clk 00:00:22]} {[%emt 00:00:03]} 52. Kh6 {[%clk
00:00:21]} Nxe6 {[%clk 00:00:24]} {[%emt 00:00:03]} 53. fxe6 {[%clk 00:00:25]}
Rxh3 {[%clk 00:00:26]} {[%emt 00:00:03]} 54. e7 {[%clk 00:00:15]} {[%emt
00:00:15]} Re3 {[%clk 00:00:30]} 55. e8=Q {[%emt 00:00:02]} Rxe8 {[%clk
00:00:34]} 56. Bxe8 {[%clk 00:00:16]} 1/2-1/2

[Event "Open NK Rapid 2025"]
[Site "Helmond, Netherlands"]
[Date "2025.05.03"]
[Round "8.11"]
[White "Kuipers-Haast, Anne"]
[Black "Thodam, Malte"]
[Result "1-0"]
[TimeControl "15+5"]
[WhiteFideId "1017292"]
[BlackFideId "24687120"]
[WhiteElo "2272"]
[BlackElo "2044"]

1. e4 {[%clk 00:15:08]} {[%emt 00:00:02]} e5 {[%clk 00:15:08]} {[%emt
00:00:02]} 2. Nf3 {[%clk 00:15:12]} {[%emt 00:00:01]} Nc6 {[%clk 00:15:13]}
{[%emt 00:00:01]} 3. Bb5 {[%clk 00:15:15]} {[%emt 00:00:02]} a6 {[%clk
00:15:17]} 4. Ba4 {[%clk 00:15:19]} {[%emt 00:00:01]} Nf6 {[%clk 00:15:20]}
{[%emt 00:00:01]} 5. d3 {[%clk 00:15:23]} {[%emt 00:00:01]} d6 {[%clk
00:15:23]} {[%emt 00:00:03]} 6. c3 {[%clk 00:15:16]} {[%emt 00:00:11]} Bd7
{[%clk 00:15:26]} {[%emt 00:00:02]} 7. O-O {[%clk 00:15:02]} {[%emt 00:00:19]}
g6 {[%clk 00:15:23]} {[%emt 00:00:08]} 8. h3 {[%clk 00:14:35]} {[%emt
00:00:31]} Bg7 {[%clk 00:15:25]} {[%emt 00:00:03]} 9. Re1 {[%clk 00:14:29]}
{[%emt 00:00:12]} O-O {[%clk 00:15:28]} {[%emt 00:00:02]} 10. Bg5 {[%clk
00:14:31]} {[%emt 00:00:03]} h6 {[%clk 00:15:25]} {[%emt 00:00:08]} 11. Be3
{[%clk 00:14:29]} {[%emt 00:00:07]} Qe8 {[%clk 00:14:38]} {[%emt 00:00:52]} 12.
Bb3 {[%clk 00:14:13]} {[%emt 00:00:21]} Kh7 {[%clk 00:14:01]} {[%emt 00:00:42]}
13. a4 {[%clk 00:14:04]} {[%emt 00:00:14]} Nh5 {[%clk 00:13:27]} {[%emt
00:00:39]} 14. d4 {[%clk 00:13:06]} {[%emt 00:01:03]} Rd8 {[%clk 00:12:20]}
{[%emt 00:01:12]} 15. Na3 {[%clk 00:10:35]} {[%emt 00:02:37]} Nf4 {[%clk
00:10:49]} {[%emt 00:01:36]} 16. Nc4 {[%clk 00:09:19]} {[%emt 00:01:21]} f6
{[%clk 00:07:51]} {[%emt 00:03:02]} 17. Bxf4 {[%clk 00:08:07]} {[%emt
00:01:17]} exf4 {[%clk 00:07:54]} {[%emt 00:00:02]} 18. Bc2 {[%clk 00:07:54]}
{[%emt 00:00:18]} Kh8 {[%clk 00:07:20]} {[%emt 00:00:40]} 19. Bd3 {[%clk
00:07:40]} {[%emt 00:00:18]} Qf7 {[%clk 00:07:12]} {[%emt 00:00:13]} 20. Qc2
{[%clk 00:07:26]} {[%emt 00:00:20]} Rde8 {[%clk 00:05:35]} {[%emt 00:01:42]} 21.
b3 {[%clk 00:07:17]} {[%emt 00:00:14]} Kh7 {[%clk 00:04:14]} {[%emt 00:01:25]}
22. Re2 {[%clk 00:05:23]} {[%emt 00:01:59]} Ne7 {[%clk 00:03:28]} {[%emt
00:00:51]} 23. Rae1 {[%clk 00:05:07]} {[%emt 00:00:21]} f5 {[%clk 00:03:22]}
{[%emt 00:00:12]} 24. e5 {[%clk 00:04:47]} {[%emt 00:00:24]} Nc8 {[%clk
00:01:51]} {[%emt 00:01:36]} 25. h4 {[%clk 00:02:10]} {[%emt 00:02:42]} Kh8
{[%clk 00:00:53]} {[%emt 00:01:03]} 26. Qd2 {[%clk 00:02:06]} {[%emt 00:00:09]}
b5 {[%clk 00:00:40]} {[%emt 00:00:19]} 27. axb5 {[%clk 00:02:07]} {[%emt
00:00:03]} axb5 {[%clk 00:00:44]} 28. Na5 {[%clk 00:01:54]} {[%emt 00:00:18]}
Nb6 {[%clk 00:00:07]} {[%emt 00:00:42]} 29. c4 {[%clk 00:01:33]} {[%emt
00:00:26]} bxc4 {[%clk 00:00:10]} {[%emt 00:00:02]} 30. Nxc4 {[%clk 00:01:31]}
{[%emt 00:00:07]} Nd5 {[%clk 00:00:11]} {[%emt 00:00:04]} 31. exd6 {[%clk
00:01:30]} {[%emt 00:00:07]} Rxe2 {[%clk 00:00:07]} {[%emt 00:00:09]} 32. Rxe2
{[%clk 00:01:34]} {[%emt 00:00:01]} c6 {[%clk 00:00:09]} {[%emt 00:00:03]} 33.
Nfe5 {[%clk 00:01:17]} {[%emt 00:00:22]} Bxe5 {[%emt 00:00:05]} 34. Nxe5 {[%clk
00:01:10]} {[%emt 00:00:11]} Qg7 {[%clk 00:00:10]} {[%emt 00:00:05]} 35. Bc4
{[%clk 00:01:08]} {[%emt 00:00:06]} Re8 {[%clk 00:00:08]} {[%emt 00:00:08]} 36.
Bxd5 {[%clk 00:00:52]} {[%emt 00:00:21]} cxd5 {[%clk 00:00:12]} {[%emt
00:00:01]} 37. Nxd7 {[%clk 00:00:46]} {[%emt 00:00:10]} Rxe2 {[%clk 00:00:07]}
{[%emt 00:00:10]} 38. Qxe2 {[%clk 00:00:50]} {[%emt 00:00:01]} Qxd7 {[%clk
00:00:11]} 39. Qe5+ {[%clk 00:00:41]} {[%emt 00:00:14]} Kg8 {[%clk 00:00:13]}
{[%emt 00:00:04]} 40. Qxd5+ {[%clk 00:00:45]} {[%emt 00:00:01]} Kg7 {[%clk
00:00:17]} {[%emt 00:00:01]} 41. Qe5+ {[%clk 00:00:47]} {[%emt 00:00:02]} Kf7
{[%clk 00:00:21]} {[%emt 00:00:01]} 42. Qxf4 {[%clk 00:00:42]} {[%emt
00:00:10]} Qe6 {[%clk 00:00:17]} {[%emt 00:00:09]} 43. Qe5 {[%clk 00:00:38]}
{[%emt 00:00:09]} Qd7 {[%clk 00:00:19]} {[%emt 00:00:03]} 44. b4 {[%clk
00:00:39]} {[%emt 00:00:04]} Qd8 {[%clk 00:00:09]} {[%emt 00:00:15]} 45. g3
{[%clk 00:00:40]} {[%emt 00:00:04]} Qd7 {[%clk 00:00:12]} {[%emt 00:00:03]} 46.
b5 {[%clk 00:00:43]} {[%emt 00:00:01]} Qe6 {[%clk 00:00:09]} {[%emt 00:00:08]}
47. b6 {[%clk 00:00:42]} {[%emt 00:00:07]} Ke8 {[%emt 00:00:14]} 1-0